fUST/lending_fUST_20260515
["ID","MTS","AMOUNT","RATE_DAILY","PERIOD"]
[422275024,1778784643000,-500.0,0.00010958,2]
[422275041,1778784643000,-501.01343098,0.00010958,2]
[422275034,1778784643000,-500.0,0.00010958,2]
[422275036,1778784643000,-500.0,0.00010958,2]
[422275030,1778784643000,-500.0,0.00010958,2]
[422275026,1778784643000,-790.49,0.00010958,2]
[422275038,1778784643000,-500.0,0.00010958,2]
[422275028,1778784643000,-500.0,0.00010958,2]
[422275022,1778784643000,-500.0,0.00010958,2]
[422275020,1778784643000,-500.0,0.00010958,2]
[422275023,1778784643000,-500.0,0.00010958,2]
[422275040,1778784643000,-500.0,0.00010958,2]
[422275032,1778784643000,-500.0,0.00010958,2]
[422275043,1778784643000,-515.33016169,0.00010958,2]
[422275056,1778784643000,-500.0,0.00010958,2]
[422275047,1778784643000,-500.09185794,0.00010958,2]
[422275045,1778784643000,-500.0,0.00010958,2]
[422275044,1778784643000,-2501.5,0.00010958,2]
[422275049,1778784643000,-500.0,0.00010958,2]
[422275052,1778784643000,-500.0,0.00010958,2]
[422275051,1778784643000,-500.0,0.00010958,2]
[422275054,1778784643000,-500.0,0.00010958,2]
[422275055,1778784643000,-500.0,0.00010958,2]
[422275057,1778784643000,-500.0,0.00010958,2]
[422275058,1778784643000,-500.0,0.00010958,2]
[422275059,1778784643000,-500.0,0.00010958,2]
[422275060,1778784643000,-500.0,0.00010958,2]
[422275021,1778784643000,-500.0,0.00010958,2]
[422275062,1778784643000,-500.0,0.00010958,2]
[422275042,1778784643000,-500.0,0.00010958,2]
[422275014,1778784643000,-500.0,0.00010958,2]
[422274983,1778784643000,-500.0,0.00010958,2]
[422275017,1778784643000,-500.0,0.00010958,2]
[422275061,1778784643000,-500.0,0.00010958,2]
[422274977,1778784643000,-500.0,0.00010958,2]
[422274979,1778784643000,-468.29720566,0.00010958,2]
[422274976,1778784643000,-292.10298263,0.00010958,2]
[422274978,1778784643000,-843.21,0.00010958,2]
[422274982,1778784643000,-500.0,0.00010958,2]
[422274980,1778784643000,-500.0,0.00010958,2]
[422274981,1778784643000,-500.0,0.00010958,2]
[422274984,1778784643000,-500.0,0.00010958,2]
[422274987,1778784643000,-556.34436347,0.00010958,2]
[422274986,1778784643000,-500.0,0.00010958,2]
[422274988,1778784643000,-500.0,0.00010958,2]
[422274989,1778784643000,-2578.73,0.00010958,2]
[422274991,1778784643000,-65715.827253,0.00010958,2]
[422275015,1778784643000,-500.0,0.00010958,2]
[422274996,1778784643000,-500.0,0.00010958,2]
[422274992,1778784643000,-500.0,0.00010958,2]
[422274994,1778784643000,-500.0,0.00010958,2]
[422274993,1778784643000,-500.0,0.00010958,2]
[422274995,1778784643000,-500.0,0.00010958,2]
[422275008,1778784643000,-500.0,0.00010958,2]
[422275010,1778784643000,-500.0,0.00010958,2]
[422274999,1778784643000,-500.0,0.00010958,2]
[422275001,1778784643000,-500.0,0.00010958,2]
[422275004,1778784643000,-500.0,0.00010958,2]
[422275007,1778784643000,-500.23346719,0.00010958,2]
[422275012,1778784643000,-500.0,0.00010958,2]
[422275011,1778784643000,-500.0,0.00010958,2]
[422275013,1778784643000,-500.45012809,0.00010958,2]
[422275019,1778784643000,-500.0,0.00010958,2]
[422274990,1778784643000,-1039.84,0.00010958,2]
[422275063,1778784643000,-500.0,0.00010958,2]
[422275090,1778784643000,-500.25459696,0.00010958,2]
[422275064,1778784643000,-500.0,0.00010958,2]
[422275104,1778784643000,-500.0,0.00010958,2]
[422275106,1778784643000,-500.0,0.00010958,2]
[422275110,1778784643000,-507.70128495,0.00010958,2]
[422275108,1778784643000,-500.0,0.00010958,2]
[422275109,1778784643000,-500.0,0.00010958,2]
[422275112,1778784643000,-500.42284511,0.00010958,2]
[422275111,1778784643000,-500.39227195,0.00010958,2]
[422275113,1778784643000,-500.72146742,0.00010958,2]
[422275114,1778784643000,-500.0,0.00010958,2]
[422275116,1778784643000,-778.0,0.00010958,2]
[422275115,1778784643000,-500.1431147,0.00010958,2]
[422275118,1778784643000,-500.69086838,0.00010958,2]
[422275120,1778784643000,-500.83427865,0.00010958,2]
[422275119,1778784643000,-500.0,0.00010958,2]
[422275117,1778784643000,-500.0,0.00010958,2]
[422275122,1778784643000,-470.4472538,0.00010958,2]
[422275123,1778784643000,-500.0,0.00010958,2]
[422275121,1778784643000,-500.0,0.00010958,2]
[422275126,1778784643000,-2435.61,0.00010958,2]
[422275125,1778784643000,-4398.16,0.00010958,2]
[422275127,1778784643000,-500.0,0.00010958,2]
[422275124,1778784643000,-500.0,0.00010958,2]
[422275130,1778784643000,-500.0,0.00010958,2]
[422275128,1778784643000,-500.0,0.00010958,2]
[422275129,1778784643000,-500.21754221,0.00010958,2]
[422275133,1778784643000,-500.52702187,0.00010958,2]
[422275132,1778784643000,-1021.62,0.00010958,2]
[422275131,1778784643000,-500.0,0.00010958,2]
[422275065,1778784643000,-500.0,0.00010958,2]
[422275105,1778784643000,-500.0,0.00010958,2]
[422275102,1778784643000,-505.23557902,0.00010958,2]
[422275107,1778784643000,-500.0,0.00010958,2]
[422275100,1778784643000,-500.0,0.00010958,2]
[422275103,1778784643000,-500.0,0.00010958,2]
[422275066,1778784643000,-500.0,0.00010958,2]
[422275067,1778784643000,-500.0,0.00010958,2]
[422275070,1778784643000,-500.0,0.00010958,2]
[422275069,1778784643000,-500.14987763,0.00010958,2]
[422275072,1778784643000,-500.22999157,0.00010958,2]
[422275074,1778784643000,-500.0,0.00010958,2]
[422275075,1778784643000,-500.0,0.00010958,2]
[422275073,1778784643000,-838.79,0.00010958,2]
[422275076,1778784643000,-454.02593718,0.00010958,2]
[422275078,1778784643000,-500.41595421,0.00010958,2]
[422275077,1778784643000,-500.0,0.00010958,2]
[422275080,1778784643000,-500.0,0.00010958,2]
[422275079,1778784643000,-500.0,0.00010958,2]
[422275083,1778784643000,-500.0,0.00010958,2]
[422275068,1778784643000,-500.0,0.00010958,2]
[422275081,1778784643000,-500.0,0.00010958,2]
[422275099,1778784643000,-500.0,0.00010958,2]
[422275084,1778784643000,-500.0,0.00010958,2]
[422275097,1778784643000,-500.0,0.00010958,2]
[422275098,1778784643000,-500.0,0.00010958,2]
[422275101,1778784643000,-500.0,0.00010958,2]
[422275094,1778784643000,-500.0,0.00010958,2]
[422275096,1778784643000,-500.0,0.00010958,2]
[422275092,1778784643000,-500.0,0.00010958,2]
[422275087,1778784643000,-500.30566108,0.00010958,2]
[422275091,1778784643000,-500.0,0.00010958,2]
[422275093,1778784643000,-500.0,0.00010958,2]
[422275085,1778784643000,-500.0,0.00010958,2]
[422275082,1778784643000,-500.0,0.00010958,2]
[422275088,1778784643000,-500.0,0.00010958,2]
[422275180,1778784644000,-2033.91,0.00010958,2]
[422275178,1778784644000,-502.29083383,0.00010958,2]
[422275182,1778784644000,-500.0,0.00010958,2]
[422275177,1778784644000,-500.0,0.00010958,2]
[422275175,1778784644000,-619.4,0.00010958,2]
[422275169,1778784644000,-500.75805861,0.00010958,2]
[422275172,1778784644000,-500.0,0.00010958,2]
[422275173,1778784644000,-500.23105018,0.00010958,2]
[422275174,1778784644000,-500.0,0.00010958,2]
[422275179,1778784644000,-500.0,0.00010958,2]
[422275170,1778784644000,-500.0,0.00010958,2]
[422275168,1778784644000,-500.0,0.00010958,2]
[422275171,1778784644000,-500.0,0.00010958,2]
[422275176,1778784644000,-500.0,0.00010958,2]
[422275189,1778784644000,-500.0,0.00010958,2]
[422275183,1778784644000,-500.0,0.00010958,2]
[422275187,1778784644000,-500.0,0.00010958,2]
[422275188,1778784644000,-1804.17,0.00010958,2]
[422275190,1778784644000,-2316.37,0.00010958,2]
[422275186,1778784644000,-500.0,0.00010958,2]
[422275192,1778784644000,-500.0,0.00010958,2]
[422275191,1778784644000,-500.23485934,0.00010958,2]
[422275194,1778784644000,-518.50520086,0.00010958,2]
[422275195,1778784644000,-500.0,0.00010958,2]
[422275193,1778784644000,-500.0,0.00010958,2]
[422275196,1778784644000,-500.36335678,0.00010958,2]
[422275167,1778784644000,-500.0,0.00010958,2]
[422275197,1778784644000,-637.31570125,0.00010958,2]
[422275181,1778784644000,-500.0,0.00010958,2]
[422275166,1778784644000,-500.0,0.00010958,2]
[422275154,1778784644000,-500.0,0.00010958,2]
[422275164,1778784644000,-500.0,0.00010958,2]
[422275134,1778784644000,-500.0,0.00010958,2]
[422275136,1778784644000,-500.0,0.00010958,2]
[422275141,1778784644000,-500.0,0.00010958,2]
[422275135,1778784644000,-500.0,0.00010958,2]
[422275137,1778784644000,-500.18442133,0.00010958,2]
[422275138,1778784644000,-1817.98,0.00010958,2]
[422275140,1778784644000,-500.0,0.00010958,2]
[422275139,1778784644000,-5463.14,0.00010958,2]
[422275142,1778784644000,-501.19952556,0.00010958,2]
[422275143,1778784644000,-500.0,0.00010958,2]
[422275145,1778784644000,-500.0,0.00010958,2]
[422275144,1778784644000,-500.0,0.00010958,2]
[422275148,1778784644000,-500.59165473,0.00010958,2]
[422275147,1778784644000,-500.0,0.00010958,2]
[422275165,1778784644000,-500.21147898,0.00010958,2]
[422275146,1778784644000,-500.0,0.00010958,2]
[422275151,1778784644000,-500.0,0.00010958,2]
[422275199,1778784644000,-500.0,0.00010958,2]
[422275153,1778784644000,-1116.08,0.00010958,2]
[422275149,1778784644000,-873.19,0.00010958,2]
[422275152,1778784644000,-578.84,0.00010958,2]
[422275155,1778784644000,-500.0,0.00010958,2]
[422275156,1778784644000,-500.71868709,0.00010958,2]
[422275158,1778784644000,-500.0,0.00010958,2]
[422275161,1778784644000,-363.04001047,0.00010958,2]
[422275157,1778784644000,-500.0,0.00010958,2]
[422275159,1778784644000,-500.0,0.00010958,2]
[422275160,1778784644000,-500.0,0.00010958,2]
[422275163,1778784644000,-500.0,0.00010958,2]
[422275162,1778784644000,-500.0,0.00010958,2]
[422275150,1778784644000,-500.0,0.00010958,2]
[422275200,1778784644000,-500.0,0.00010958,2]
[422275185,1778784644000,-500.0,0.00010958,2]
[422275198,1778784644000,-500.18096539,0.00010958,2]
[422275237,1778784644000,-500.0,0.00010958,2]
[422275239,1778784644000,-500.0,0.00010958,2]
[422275242,1778784644000,-2805.7,0.00010958,2]
[422275238,1778784644000,-500.0,0.00010958,2]
[422275240,1778784644000,-517.70246611,0.00010958,2]
[422275241,1778784644000,-500.0,0.00010958,2]
[422275244,1778784644000,-500.0,0.00010958,2]
[422275243,1778784644000,-500.0,0.00010958,2]
[422275245,1778784644000,-1477.6,0.00010958,2]
[422275246,1778784644000,-1505.42,0.00010958,2]
[422275247,1778784644000,-3697.13,0.00010958,2]
[422275248,1778784644000,-500.19339158,0.00010958,2]
[422275250,1778784644000,-181.42524846,0.00010958,2]
[422275251,1778784644000,-500.180027,0.00010958,2]
[422275254,1778784644000,-928.94,0.00010958,2]
[422275249,1778784644000,-500.0,0.00010958,2]
[422275253,1778784644000,-500.0,0.00010958,2]
[422275252,1778784644000,-500.0,0.00010958,2]
[422275255,1778784644000,-500.0,0.00010958,2]
[422275256,1778784644000,-500.0,0.00010958,2]
[422275257,1778784644000,-500.0,0.00010958,2]
[422275258,1778784644000,-500.0,0.00010958,2]
[422275202,1778784644000,-500.0,0.00010958,2]
[422275260,1778784644000,-502.26485176,0.00010958,2]
[422275261,1778784644000,-500.0,0.00010958,2]
[422275259,1778784644000,-1241.09,0.00010958,2]
[422275264,1778784644000,-500.0,0.00010958,2]
[422275263,1778784644000,-500.25334368,0.00010958,2]
[422275265,1778784644000,-4830.2,0.00010958,2]
[422275236,1778784644000,-500.28347976,0.00010958,2]
[422275234,1778784644000,-500.0,0.00010958,2]
[422275262,1778784644000,-500.0,0.00010958,2]
[422275233,1778784644000,-500.63211396,0.00010958,2]
[422275232,1778784644000,-500.3727162,0.00010958,2]
[422275203,1778784644000,-501.58066429,0.00010958,2]
[422275201,1778784644000,-500.6709475,0.00010958,2]
[422275205,1778784644000,-500.2235145,0.00010958,2]
[422275204,1778784644000,-500.75712435,0.00010958,2]
[422275206,1778784644000,-500.0,0.00010958,2]
[422275210,1778784644000,-500.0,0.00010958,2]
[422275207,1778784644000,-500.64750051,0.00010958,2]
[422275208,1778784644000,-500.0,0.00010958,2]
[422275211,1778784644000,-500.0,0.00010958,2]
[422275212,1778784644000,-1705.23,0.00010958,2]
[422275214,1778784644000,-500.0,0.00010958,2]
[422275213,1778784644000,-500.0,0.00010958,2]
[422275216,1778784644000,-500.0,0.00010958,2]
[422275215,1778784644000,-500.14566178,0.00010958,2]
[422275209,1778784644000,-441.60942771,0.00010958,2]
[422275217,1778784644000,-1428.99,0.00010958,2]
[422275235,1778784644000,-500.0,0.00010958,2]
[422275230,1778784644000,-3858.71,0.00010958,2]
[422275231,1778784644000,-500.61013095,0.00010958,2]
[422275228,1778784644000,-500.0,0.00010958,2]
[422275223,1778784644000,-500.0,0.00010958,2]
[422275225,1778784644000,-500.0,0.00010958,2]
[422275229,1778784644000,-500.0,0.00010958,2]
[422275218,1778784644000,-500.0,0.00010958,2]
[422275226,1778784644000,-500.0,0.00010958,2]
[422275224,1778784644000,-5320.93,0.00010958,2]
[422275219,1778784644000,-193.86663231,0.00010958,2]
[422275220,1778784644000,-359.56624589,0.00010958,2]
[422275221,1778784644000,-500.0,0.00010958,2]
[422275222,1778784644000,-500.62055869,0.00010958,2]
[422275227,1778784644000,-500.26525418,0.00010958,2]
[422275279,1778784645000,-631.40152161,0.00010958,2]
[422275281,1778784645000,-2354.12,0.00010958,2]
[422275278,1778784645000,-500.0,0.00010958,2]
[422275277,1778784645000,-500.93135553,0.00010958,2]
[422275276,1778784645000,-500.0,0.00010958,2]
[422275275,1778784645000,-500.0,0.00010958,2]
[422275274,1778784645000,-500.29966659,0.00010958,2]
[422275270,1778784645000,-500.0,0.00010958,2]
[422275273,1778784645000,-500.0,0.00010958,2]
[422275271,1778784645000,-500.0,0.00010958,2]
[422275268,1778784645000,-500.0,0.00010958,2]
[422275269,1778784645000,-500.0,0.00010958,2]
[422275282,1778784645000,-500.61251817,0.00010958,2]
[422275266,1778784645000,-643.70882639,0.00010958,2]
[422275272,1778784645000,-500.0,0.00010958,2]
[422275267,1778784645000,-500.23035748,0.00010958,2]
[422275280,1778784645000,-500.0,0.00010958,2]
[422275285,1778784645000,-180.22015726,0.00010633,2]
[422275283,1778784645000,-10.06629442,0.00010958,2]
[422275300,1778784645000,-260.80181988,0.00010958,2]
[422275299,1778784645000,-500.0,0.00010958,2]
[422275298,1778784645000,-500.94167725,0.00010958,2]
[422275297,1778784645000,-500.18815851,0.00010958,2]
[422275296,1778784645000,-500.0,0.00010958,2]
[422275294,1778784645000,-1405.1,0.00010958,2]
[422275291,1778784645000,-500.0,0.00010958,2]
[422275293,1778784645000,-364.12829986,0.00010958,2]
[422275292,1778784645000,-278.86799462,0.00010958,2]
[422275289,1778784645000,-500.18768667,0.00010958,2]
[422275288,1778784645000,-500.19693997,0.00010958,2]
[422275286,1778784645000,-490.43929564,0.00010958,2]
[422275287,1778784645000,-500.0,0.00010958,2]
[422275284,1778784645000,-180.22015726,0.00010599,2]
[422275295,1778784645000,-851.53,0.00010958,2]
[422275837,1778785832000,-2246.96246121,6.852e-05,2]
[422275840,1778785832000,-1093.98275846,6.852e-05,2]
[422275838,1778785832000,-1215.88244051,6.852e-05,2]
[422275842,1778785832000,-1200.0,6.92e-05,2]
[422275841,1778785832000,-443.17233982,6.852e-05,2]
[422275843,1778785832000,-4785.89226297,6.921e-05,2]
[422275884,1778785838000,-420.0,7.728e-05,2]
[422275874,1778785838000,-300.0,7.025e-05,2]
[422275873,1778785838000,-214.10773703,6.921e-05,2]
[422275876,1778785838000,-300.0,7.025e-05,2]
[422275875,1778785838000,-300.0,7.025e-05,2]
[422275877,1778785838000,-300.0,7.025e-05,2]
[422275878,1778785838000,-315.09105867,7.026e-05,2]
[422275881,1778785838000,-7304.0,7.6e-05,2]
[422275879,1778785838000,-334.31636188,7.426e-05,2]
[422275880,1778785838000,-151.0,7.55e-05,2]
[422275883,1778785838000,-1680.0,7.612e-05,2]
[422275886,1778785838000,-420.0,7.728e-05,2]
[422275882,1778785838000,-500.0,7.606e-05,2]
[422275889,1778785838000,-2416.4079311,8e-05,2]
[422275892,1778785838000,-300.0,8.077e-05,2]
[422275887,1778785838000,-420.0,7.728e-05,2]
[422275890,1778785838000,-500.0,8.007e-05,2]
[422275888,1778785838000,-716.57081147,7.758e-05,2]
[422275891,1778785838000,-300.0,8.077e-05,2]
[422275893,1778785838000,-300.0,8.077e-05,2]
[422275894,1778785838000,-300.0,8.077e-05,2]
[422275885,1778785838000,-420.0,7.728e-05,2]
[422275938,1778785839000,-151.0,0.0001,2]
[422275935,1778785839000,-151.0,0.0001,2]
[422275936,1778785839000,-151.0,0.0001,2]
[422275934,1778785839000,-151.0,0.0001,2]
[422275933,1778785839000,-151.0,0.0001,2]
[422275926,1778785839000,-10718.82364541,9.879e-05,2]
[422275930,1778785839000,-151.0,0.0001,2]
[422275929,1778785839000,-182.05508133,0.0001,2]
[422275928,1778785839000,-864.0,9.967e-05,2]
[422275927,1778785839000,-500.0,9.937e-05,2]
[422275937,1778785839000,-151.0,0.0001,2]
[422275932,1778785839000,-151.0,0.0001,2]
[422275939,1778785839000,-151.0,0.0001,2]
[422275946,1778785839000,-151.0,0.0001,2]
[422275941,1778785839000,-151.0,0.0001,2]
[422275943,1778785839000,-151.0,0.0001,2]
[422275942,1778785839000,-151.0,0.0001,2]
[422275944,1778785839000,-151.0,0.0001,2]
[422275925,1778785839000,-161.64793294,9.859e-05,2]
[422275945,1778785839000,-151.0,0.0001,2]
[422275947,1778785839000,-151.0,0.0001,2]
[422275950,1778785839000,-1034.0570311,0.0001,2]
[422275949,1778785839000,-175.13900659,0.0001,2]
[422275948,1778785839000,-151.0,0.0001,2]
[422275951,1778785839000,-237.25,0.00010064,2]
[422275952,1778785839000,-1034.0570311,0.000101,2]
[422275953,1778785839000,-503.74305258,0.00010148,2]
[422275940,1778785839000,-151.0,0.0001,2]
[422275922,1778785839000,-2202.0,9.663e-05,2]
[422275918,1778785839000,-151.0,9.493e-05,2]
[422275923,1778785839000,-500.0,9.663e-05,2]
[422275895,1778785839000,-300.0,8.077e-05,2]
[422275896,1778785839000,-300.0,8.077e-05,2]
[422275898,1778785839000,-300.0,8.077e-05,2]
[422275897,1778785839000,-300.0,8.077e-05,2]
[422275899,1778785839000,-300.0,8.077e-05,2]
[422275900,1778785839000,-300.0,8.077e-05,2]
[422275901,1778785839000,-300.0,8.077e-05,2]
[422275902,1778785839000,-300.0,8.077e-05,2]
[422275903,1778785839000,-300.0,8.077e-05,2]
[422275904,1778785839000,-300.0,8.077e-05,2]
[422275906,1778785839000,-600.0,8.238e-05,2]
[422275907,1778785839000,-200.0,8.407e-05,2]
[422275909,1778785839000,-22615.45434421,8.613e-05,2]
[422275905,1778785839000,-300.0,8.077e-05,2]
[422275908,1778785839000,-587.0,8.501e-05,2]
[422275911,1778785839000,-720.0,9.061e-05,2]
[422275910,1778785839000,-371.80744923,9.026e-05,2]
[422275912,1778785839000,-10000.0,9.123e-05,2]
[422275914,1778785839000,-823.0,9.351e-05,2]
[422275913,1778785839000,-2863.41696263,9.343e-05,2]
[422275915,1778785839000,-456.4199449,9.493e-05,2]
[422275917,1778785839000,-325.8289405,9.493e-05,2]
[422275916,1778785839000,-151.0,9.493e-05,2]
[422275920,1778785839000,-647.0,9.663e-05,2]
[422275954,1778785839000,-573.92436684,0.00010148,2]
[422275919,1778785839000,-324.8394094,9.493e-05,2]
[422275921,1778785839000,-1412.0,9.663e-05,2]
[422275924,1778785839000,-160.0,9.859e-05,2]
[422275955,1778785839000,-445.52875793,0.00010148,2]
[422275931,1778785839000,-151.0,0.0001,2]
[422275956,1778785839000,-500.0,0.00010148,2]
[422275987,1778785839000,-500.0,0.00010152,2]
[422275990,1778785839000,-500.0,0.00010152,2]
[422275991,1778785839000,-500.0,0.00010152,2]
[422275992,1778785839000,-500.0,0.00010152,2]
[422275994,1778785839000,-508.06469156,0.00010152,2]
[422275995,1778785839000,-500.0,0.00010152,2]
[422275996,1778785839000,-500.0,0.00010152,2]
[422275993,1778785839000,-500.0,0.00010152,2]
[422275999,1778785839000,-893.0,0.00010152,2]
[422275997,1778785839000,-500.0,0.00010152,2]
[422276000,1778785839000,-893.0,0.00010152,2]
[422275998,1778785839000,-325.72465775,0.00010152,2]
[422276004,1778785839000,-893.0,0.00010152,2]
[422275988,1778785839000,-500.0,0.00010152,2]
[422276003,1778785839000,-893.0,0.00010152,2]
[422276002,1778785839000,-893.0,0.00010152,2]
[422276006,1778785839000,-893.0,0.00010152,2]
[422276007,1778785839000,-893.0,0.00010152,2]
[422276005,1778785839000,-893.0,0.00010152,2]
[422276009,1778785839000,-893.0,0.00010152,2]
[422276008,1778785839000,-893.0,0.00010152,2]
[422276011,1778785839000,-893.0,0.00010152,2]
[422276010,1778785839000,-893.0,0.00010152,2]
[422276015,1778785839000,-893.0,0.00010152,2]
[422276013,1778785839000,-893.0,0.00010152,2]
[422276012,1778785839000,-893.0,0.00010152,2]
[422275959,1778785839000,-500.0,0.00010148,2]
[422276016,1778785839000,-893.0,0.00010152,2]
[422276001,1778785839000,-893.0,0.00010152,2]
[422275989,1778785839000,-500.0,0.00010152,2]
[422276014,1778785839000,-893.0,0.00010152,2]
[422275985,1778785839000,-500.0,0.00010148,2]
[422275986,1778785839000,-650.0,0.00010148,2]
[422275957,1778785839000,-500.0,0.00010148,2]
[422275960,1778785839000,-500.0,0.00010148,2]
[422275965,1778785839000,-500.0,0.00010148,2]
[422275961,1778785839000,-500.0,0.00010148,2]
[422275964,1778785839000,-500.0,0.00010148,2]
[422275963,1778785839000,-500.0,0.00010148,2]
[422275962,1778785839000,-500.0,0.00010148,2]
[422275966,1778785839000,-500.0,0.00010148,2]
[422275967,1778785839000,-500.0,0.00010148,2]
[422275968,1778785839000,-500.0,0.00010148,2]
[422275971,1778785839000,-356.55742965,0.00010148,2]
[422275970,1778785839000,-500.0,0.00010148,2]
[422275969,1778785839000,-500.0,0.00010148,2]
[422275958,1778785839000,-500.0,0.00010148,2]
[422275973,1778785839000,-500.0,0.00010148,2]
[422275972,1778785839000,-500.0,0.00010148,2]
[422275984,1778785839000,-500.0,0.00010148,2]
[422275983,1778785839000,-500.0,0.00010148,2]
[422275982,1778785839000,-500.0,0.00010148,2]
[422275981,1778785839000,-500.0,0.00010148,2]
[422275980,1778785839000,-500.0,0.00010148,2]
[422275975,1778785839000,-500.0,0.00010148,2]
[422275976,1778785839000,-500.0,0.00010148,2]
[422275978,1778785839000,-500.0,0.00010148,2]
[422275977,1778785839000,-500.0,0.00010148,2]
[422275974,1778785839000,-500.0,0.00010148,2]
[422275979,1778785839000,-500.0,0.00010148,2]
[422276057,1778785840000,-500.0,0.00010957,2]
[422276054,1778785840000,-500.0,0.00010957,2]
[422276058,1778785840000,-500.0,0.00010957,2]
[422276052,1778785840000,-635.9753026,0.00010954,2]
[422276050,1778785840000,-800.0,0.00010864,2]
[422276053,1778785840000,-480.0,0.00010956,2]
[422276055,1778785840000,-442.38310529,0.00010957,2]
[422276051,1778785840000,-923.9901341,0.00010954,2]
[422276048,1778785840000,-407.30902701,0.00010852,2]
[422276049,1778785840000,-254.2653631,0.00010859,2]
[422276056,1778785840000,-500.0,0.00010957,2]
[422276059,1778785840000,-500.0,0.00010957,2]
[422276066,1778785840000,-251.32898251,0.00010957,2]
[422276063,1778785840000,-500.0,0.00010957,2]
[422276060,1778785840000,-500.0,0.00010957,2]
[422276061,1778785840000,-500.0,0.00010957,2]
[422276064,1778785840000,-500.0,0.00010957,2]
[422276065,1778785840000,-500.0,0.00010957,2]
[422276067,1778785840000,-500.0,0.00010957,2]
[422276069,1778785840000,-500.0,0.00010957,2]
[422276073,1778785840000,-375.93028776,0.00010957,2]
[422276072,1778785840000,-500.0,0.00010957,2]
[422276071,1778785840000,-159.6681737,0.00010957,2]
[422276074,1778785840000,-500.0,0.00010958,2]
[422276047,1778785840000,-254.2653631,0.00010832,2]
[422276077,1778785840000,-3685.6996,0.00010958,2]
[422276062,1778785840000,-500.0,0.00010957,2]
[422276046,1778785840000,-254.2653631,0.00010806,2]
[422276032,1778785840000,-578.20924308,0.00010412,2]
[422276044,1778785840000,-800.0,0.00010759,2]
[422276076,1778785840000,-500.0,0.00010958,2]
[422276017,1778785840000,-893.0,0.00010152,2]
[422276018,1778785840000,-893.0,0.00010152,2]
[422276019,1778785840000,-893.0,0.00010152,2]
[422276022,1778785840000,-911.0012822,0.00010152,2]
[422276021,1778785840000,-893.0,0.00010152,2]
[422276020,1778785840000,-893.0,0.00010152,2]
[422276024,1778785840000,-500.0,0.00010185,2]
[422276028,1778785840000,-537.6845,0.00010302,2]
[422276025,1778785840000,-1034.0570311,0.000102,2]
[422276026,1778785840000,-1221.03466604,0.0001025,2]
[422276029,1778785840000,-233.23247172,0.00010302,2]
[422276045,1778785840000,-254.2653631,0.00010779,2]
[422276027,1778785840000,-1034.0570311,0.000103,2]
[422276031,1778785840000,-1034.0570311,0.000104,2]
[422276036,1778785840000,-621.78829552,0.00010522,2]
[422276033,1778785840000,-160.0,0.00010442,2]
[422276034,1778785840000,-599.60298507,0.00010467,2]
[422276035,1778785840000,-851.81111868,0.00010487,2]
[422276037,1778785840000,-644.79446246,0.00010577,2]
[422276038,1778785840000,-668.65185757,0.00010632,2]
[422276039,1778785840000,-693.3919763,0.00010687,2]
[422276040,1778785840000,-800.0,0.00010723,2]
[422276041,1778785840000,-385.92342567,0.00010739,2]